Cogmind - Beta 13 *** ADVENTURER MODE // 2024.07.19 @ 11:58:22 Player: HOPESALAD Result: Destroyed by D-53 Grenadier with Mini Grenade Launcher Performance ------------- Evolutions (0) 0 Regions Visited (2) 400 Robots Destroyed (25) 125 Value Destroyed (599) 599 Prototype IDs (2) 40 Alien Tech Used (0) 0 Bonus (24) 24 TOTAL SCORE: 1188 Bonus ------- High Alert Combat Kills 24 Cogmind --------- Core Integrity 0/250 Matter 14/300 Energy 98/100 System Corruption 0% Temperature Cool (1) Movement Core (200) Ox3 Location -10/Mines Parts ------- > --- POWER (1) -------- (None) > --- PROPULSION (2) --- (None) > --- UTILITY (2) ------ Medium Storage Unit Sensor Array > --- WEAPON (2) ------- Light Assault Rifle > --- INVENTORY (10) --- Heat Sink Improved Heat Sink Signal Interpreter Light Armor Plating Datajack Peak State ------------ > --- POWER ------------ Light Ion Engine > --- PROPULSION ------- Aluminum Leg Aluminum Leg > --- UTILITY ---------- Medium Storage Unit Sensor Array > --- WEAPON ----------- Particle Gun Light Assault Rifle > --- INVENTORY -------- Aluminum Leg Heat Sink Improved Heat Sink Signal Interpreter Light Armor Plating Light Assault Rifle Grenade Launcher Datajack [Rating: 9] Favorites ----------- Power Light Ion Engine Engine Light Ion Engine Propulsion Aluminum Leg Leg Aluminum Leg Utility Sensor Array Device Sensor Array Storage Medium Storage Unit Weapon Grenade Launcher Energy Gun Particle Gun Ballistic Gun Light Assault Rifle Launcher Grenade Launcher Build | -11 -10 -10 ------- Run | Yrd Mat Min Slots Evolved . | . . . Power . | . . . Propulsion . | . . . Utility . | . . . Weapon . | . . . Parts Attached 16 | 6 6 4 Power 1 | 1 . . Engine 1 | 1 . . Core . | . . . Reactor . | . . . Propulsion 3 | 2 . 1 Treads . | . . . Leg 3 | 2 . 1 Wheel . | . . . Hover . | . . . Flight . | . . . Utility 4 | 1 3 . Device 2 | 1 1 . Storage 2 | . 2 . Processor . | . . . Hackware . | . . . Protection . | . . . Artifact . | . . . Weapon 8 | 2 3 3 Energy Gun 1 | . . 1 Energy Cannon . | . . . Ballistic Gun 4 | 2 1 1 Ballistic Cannon . | . . . Launcher 3 | . 2 1 Special Weapon . | . . . Impact Weapon . | . . . Slashing Weapon . | . . . Piercing Weapon . | . . . Special Melee Weapon . | . . . Unidentified Prototypes . | . . . Parts Lost 8 | . 1 7 Power 1 | . . 1 Propulsion 3 | . . 3 Utility . | . . . Weapon 4 | . 1 3 Highest Loss Streak 7 | . 1 7 To Critical Strikes . | . . . Average Slot Usage (%) 96 | . 96 96 Engine 13 | . 14 12 Leg 27 | . 28 27 Device 18 | . 20 14 Storage 7 | . 4 14 Energy Gun 2 | . . 7 Ballistic Gun 10 | . 8 14 Launcher 15 | . 19 4 Naked Turns . | . . . Heaviest Build 18 | 6 18 18 Greatest Support 20 | 20 20 20 Greatest Overweight (x) 1 | . . 1 Average Overweight (x) . | . . . Largest Inventory Capacity 10 | 5 10 10 Average Capacity 7 | 5 6 10 Most Carried 8 | 2 7 8 Average Carried 4 | . 4 7 Final Capacity 10 | 5 10 10 Final Carried 7 | 1 7 5 Class Distribution -------------------- 100% | Mutant Dominant Class ---------------- Mutant | -10/Materials Mutant | -10/Mines Resources | -11 -10 -10 ----------- Run | Yrd Mat Min Matter Collected 300 | 262 28 10 Remotely . | . . . Salvage Created 370 | 43 247 80 Parts 37 | 2 27 8 Haulers Intercepted 1 | . 1 . Recyclers Shooed . | . . . Parts Field Recycled . | . . . Retrieved Matter . | . . . Parts Self-Destructed . | . . . Prevented . | . . . Kills | -11 -10 -10 ------- Run | Yrd Mat Min Combat Hostiles Destroyed 18 | 1 13 4 Guns 3 | 1 . 2 AOE 15 | . 13 2 Classes Destroyed 7 | 1 6 . Worker 2 | . 2 . Builder 1 | . 1 . Tunneler 1 | . 1 . Hauler 1 | . 1 . Watcher 2 | . 2 . Swarmer 5 | . 3 2 Grunt 13 | 1 10 2 Best Kill Streak 12 | 1 12 2 Combat Bots Only 8 | 1 8 2 Max Kills in Single Turn 4 | 1 4 1 Gunslinging . | . . . Exploded 3 | . 3 1 Melee . | . . . Uniques/NPCs Destroyed . | . . . Combat | -11 -10 -10 -------- Run | Yrd Mat Min Hostile Shots Fired 61 | 1 26 34 Missed 17 | . 7 10 Damage Taken 840 | 8 217 615 Core 254 | . 66 188 Absorbed by Shields . | . . . Ignored by Resistances 239 | 3 66 170 Core Remaining (%) 100 | 100 . . Volleys Fired 29 | 1 11 17 Largest 2 | 2 2 2 Hottest 85 | 40 60 85 Shots Fired 56 | 2 21 33 Gun 32 | 2 3 27 Cannon . | . . . Launcher 24 | . 18 6 Special . | . . . Kinetic 26 | 2 3 21 Thermal 6 | . . 6 Explosive 24 | . 18 6 Electromagnetic . | . . . Robot Hit Streak 13 | 2 10 13 Robot Miss Streak 3 | . 1 3 Penetration Max . | . . . Secondary Targets . | . . . Shots Hit Robots 38 | 2 13 23 Core Hits 45 | 2 32 11 Critical Kills . | . . . Critical Parts Destroyed . | . . . Critical Strikes 1 | . . 1 Burn 1 | . . 1 Melee Attacks . | . . . Impact . | . . . Slashing . | . . . Piercing . | . . . Sneak Attacks . | . . . Combat Hostiles . | . . . Follow-up Attacks . | . . . Damage Inflicted 1772 | 16 1391 365 Guns 182 | 16 13 153 Cannons . | . . . Explosions 1590 | . 1378 212 Melee . | . . . Ramming . | . . . Kinetic 137 | 16 13 108 Thermal 246 | . 201 45 Explosive 1389 | . 1177 212 Electromagnetic . | . . . Impact . | . . . Slashing . | . . . Piercing . | . . . Highest Corruption . | . . . Average Corruption . | . . . Corruption Purged . | . . . Corruption Blocked . | . . . Overload Shots . | . . . Overflow Damage 84 | . 84 . Projectiles . | . . . Explosions 84 | . 84 . Melee . | . . . Knockbacks . | . . . Impact . | . . . Kinetic . | . . . Secondary . | . . . Self-Inflicted Damage 51 | . 51 . Shots 5 | . 5 . Rammed . | . . . Targets Rammed . | . . . Kicked . | . . . Crushed . | . . . Highest Temperature 184 | . 5 184 Average Temperature 56 | . 2 62 Received Heat Transfer 161 | 6 111 44 Siege Activations . | . . . Robots Corrupted . | . . . Combat Hostiles . | . . . Parts Fried . | . . . Impact Corruptions . | . . . Robots Melted . | . . . Combat Hostiles . | . . . Parts Melted 1 | . 1 . Heat Transferred 335 | . 150 185 Parts Sabotaged . | . . . Parts Stolen . | . . . Parts Stripped . | . . . Power Chain Reactions . | . . . Alert | -11 -10 -10 ------- Run | Yrd Mat Min Peak Influence 484 | 20 484 204 Initial 93 | . 11 93 Average 214 | 4 285 142 Maximum Alert Level 2 | . 2 1 Low Security (%) 49 | 100 19 96 Level 1 36 | . 56 3 Level 2 14 | . 23 . Level 3 . | . . . Level 4 . | . . . Level 5 . | . . . High Security . | . . . Max Security . | . . . Squads Dispatched 3 | . 3 . Investigation 3 | . 3 . Extermination . | . . . Reinforcement . | . . . Assault . | . . . Garrison . | . . . Intercept . | . . . Searches Triggered . | . . . Construction Impeded . | . . . Haulers Reinforced . | . . . Active Scanning Responses . | . . . Cargo Convoy Interrupts . | . . . Stealth | -11 -10 -10 --------- Run | Yrd Mat Min Distress Signals 1 | . 1 . Communications Jammed . | . . . Distress Signals . | . . . Times Spotted 29 | 1 16 12 Peak Tracking Total 8 | 1 6 8 Tactical Retreats . | . . . Traps | -11 -10 -10 ------- Run | Yrd Mat Min Traps Triggered 3 | . 3 . Indirectly . | . . . Trap Hack Attempts . | . . . Triggered . | . . . Disarmed . | . . . Reprogrammed . | . . . Reused . | . . . Traps Extracted . | . . . Installed . | . . . Triggered . | . . . Machines | -11 -10 -10 ---------- Run | Yrd Mat Min Machines Disabled 3 | . 3 . Max in Single Turn 1 | . 1 . Machines Repaired . | . . . Machines Dismantled . | . . . Machines Sabotaged . | . . . Overloaded Fab Kills . | . . . Hacking | -11 -10 -10 --------- Run | Yrd Mat Min Machines Accessed 4 | . 4 . Terminals 3 | . 3 . Fabricators . | . . . Repair Stations . | . . . Recycling Units 1 | . 1 . Scanalyzers . | . . . Garrison Access . | . . . Total Hacks 15 | . 15 . Successful 11 | . 11 . Failed 4 | . 4 . Catastrophic . | . . . Database Lockouts . | . . . Manual . | . . . Terminals 14 | . 14 . Fabricators . | . . . Repair Stations . | . . . Recycling Units 1 | . 1 . Scanalyzers . | . . . Garrison Access . | . . . Terminal Hacks 10 | . 10 . Record 3 | . 3 . Prototype ID Bank 2 | . 2 . Terminal Index 1 | . 1 . Alert Level 2 | . 2 . Dispatch Records 1 | . 1 . Maintenance Status 1 | . 1 . Fabricator Hacks . | . . . Repair Station Hacks . | . . . Recycling Unit Hacks 1 | . 1 . Retrieve Components 1 | . 1 . Scanalyzer . | . . . Garrison Access Hacks . | . . . Unauthorized Hacks . | . . . Terminals . | . . . Fabricators . | . . . Repair Stations . | . . . Recycling Units . | . . . Scanalyzers . | . . . Garrison Access . | . . . Data Cores Recovered . | . . . Used . | . . . Hacking Detections 3 | . 3 . Full Trace Events 1 | . 1 . Feedback Events . | . . . Feedback Blocked . | . . . Robot Schematics Acquired . | . . . Robots Built . | . . . Authchips . | . . . Time . | . . . Total Robot Build Rating . | . . . Part Schematics Acquired . | . . . Parts Built . | . . . Authchips . | . . . Time . | . . . Total Part Build Rating . | . . . Parts Repaired . | . . . Time . | . . . Parts Recycled . | . . . Recycled Matter . | . . . Retrieved Matter . | . . . Retrieved Components 3 | . 3 . Parts Scanalyzed . | . . . Part Schematics Acquired . | . . . Parts Damaged . | . . . Bothacking | -11 -10 -10 ------------ Run | Yrd Mat Min Used RIF Installer . | . . . Robots Hacked . | . . . Non-combat . | . . . Combat . | . . . Robot Hacks Applied . | . . . Relay Couplers Released . | . . . Fabnet Peak Effective % . | . . . Robots Rewired . | . . . Allies Hacked . | . . . Hacks Repelled . | . . . Allies | -11 -10 -10 -------- Run | Yrd Mat Min Total Allies . | . . . Largest Group . | . . . Highest-Rated Group . | . . . Highest-Rated Ally . | . . . Total Orders . | . . . Ally Attacks . | . . . Total Damage . | . . . Kills . | . . . Allies Corrupted . | . . . Allies Melted . | . . . Intel | -11 -10 -10 ------- Run | Yrd Mat Min Robot Analysis Total . | . . . Derelict Logs Recovered 1 | . . 1 Drone Launches . | . . . Drone Recoveries . | . . . Exploration | -11 -10 -10 ------------- Run | Yrd Mat Min Turns Passed 782 | 99 486 197 Spaces Moved 567 | 82 363 122 Core 21 | 21 . . Treads . | . . . Legs 546 | 61 363 122 Wheels . | . . . Hover . | . . . Flight . | . . . Fastest Speed 50 | 50 120 120 Average Speed 117 | 102 120 120 Slowest Speed 190 | 120 120 190 Overloaded Moves . | . . . Propulsion Burnouts . | . . . Robots Hopped . | . . . Cave-ins Triggered . | . . . Exploration Rate (%) 30 | 7 43 42 Regions Visited 2 Branch Regions 1 Pre-discovered Areas . | . . . Known Exits Taken . | . . . Unknown Exits Taken 2 | 1 1 . Scrap Searched . | . . . Spaces Dug 9 | . 9 . Terrain Destroyed 100 | . 83 17 Melee . | . . . Projectile . | . . . AOE 100 | . 83 17 Terrain Rammed . | . . . Walls Destroyed . | . . . Machines Disabled . | . . . Actions | -11 -10 -10 --------- Run | Yrd Mat Min Total 635 | 95 395 145 Wait . | . . . Move 565 | 81 362 122 Hop . | . . . Pick Up 19 | 7 11 1 Fast Attach . | . . . Attach 16 | 6 6 4 Detach 3 | . 2 1 Swap . | . . . Drop 3 | . 3 . Fire 29 | 1 11 17 Melee . | . . . Ram . | . . . Kick . | . . . Crush . | . . . Escape Stasis . | . . . Rewire . | . . . Trap . | . . . Miscellaneous . | . . . Route ------- -11/Scrapyard -10/Materials (discovered 2 exits: [*Mat] / [*Min]) -10/Mines (discovered 1 exit: [*Mat]) History --------- Turn | Location | Event 2 | -11/Scrapyard | Met Revision 17 70 | -11/Scrapyard | Discovered new exit (range 8) 100 | -11/Scrapyard | Entered Materials 171 | -10/Materials | Discovered new exit (range 7) 220 | -10/Materials | Destroyed 8 combat bots 313 | -10/Materials | Build established: Mutant 320 | -10/Materials | Discovered new exit (range 14) 586 | -10/Materials | Entered Mines 603 | -10/Mines | Discovered new exit (range 9) 608 | -10/Mines | Learned 8 Materials zone layouts 728 | -10/Mines | Assembled infested the area 763 | -10/Mines | Core integrity fell below 50% 776 | -10/Mines | Core integrity fell below 20% 783 | -10/Mines | Destroyed by D-53 Grenadier with Mini Grenade Launcher Last Messages --------------- 00766_ Aluminum Leg destroyed. 00766_ Lgt. Ion Engine destroyed. 00769_ K-01 Serf collects debris. 00773_ as-74088 destroyed. 00773_ as-13428 destroyed. 00773_ as-26596 destroyed. 00775_ K-01 Serf collects debris. 00775_ Aluminum Leg destroyed. 00779_ D-53 Grenadier destroyed. 00780_ Lgt. Assault Rifle destroyed. 00781_ Destroyed Asb. F-torch. 00781_ as-28370 destroyed. 00782_ The unstable cave ceiling collapses. Overweight warning: You are carrying more than your current propulsion can efficiently support, which slows movement; see status page ('s') or the top of the parts list for the specific mass vs. support values. 00783_ Aluminum Leg destroyed. [Achievement: First Step to Greatness] Map ----- +----------------------------------------------------+ | ##???? #??? ##????????????????????? | | ##### ####? #??? #????????????????????? | | #???## < ## #???# ?????????????????????? | | #????## # ##### ?????????????????????? | | ##????# ??????????????????????? | | ###??# ???????????????????????? | | #### ###?# ???????????????????????? | | """ #???# ????????????????????????? | | # #### """ ##???# #????????????????????????? | | ## #??## """ ##???# #?####???????????????????? | | ### #???## ##??# ### ##??????????????????? | | ??# #????### #### ## ###????????????????? | | ??# #??????## k ##???????????????? | | ??# #???????## ### #???????????????? | | ??# #????????## ##?###### #???????????????? | | ??# #?????????#####????### ##???????????????? | | ??? ??????????????????## ##????????????????? | | ???#??? ????????????# ####?????????????????? | | ??????? ???????????# ##????????????????????? | | ??????? ####??????# #?????????????????????? | | ?????? ####?## #?????????????????????? | | ?????? ## ##????????????????????? | | ??????# ######## ###?????????? | | ??????# t #?????????? | | ?????# #?????????? | | ????? " @ ######## #?????????? | | ????? "% =d #??????????????????? | | ??????### =a #??????????????????? | | ???????????### = #??????????????????? | | ?????????????### % ###??????????????????? | | ???????????????## [a ##???????????????????? | | ????????????????###a# ????????????????????? | | ??????????????????#a#### % %%???????????????????? | | ??????????????????#%???# #???????????????????? | | ??????????????????##???# ###???????????????????? | | ???????????????????????#####?????????????????????? | | ?????????????????????????????????????????????????? | | ?????????????????????????????????????????????????? | | ?????????????????????????????????????????????????? | | ?????????????????????????????????????????????????? | | ?????????????????????????????????????????????????? | | ?????????????????????????????????????????????????? | | ?????????????????????????????????????????????????? | | ?????????????????????????????????????????????????? | | ?????????????????????????????????????????????????? | | ?????????????????????????????????????????????????? | | ?????????????????????????????????????????????????? | | ?????????????????????????????????????????????????? | | ?????????????????????????????????????????????????? | | ?????????????????????????????????????????????????? | +----------------------------------------------------+ Best States ------------- Heat Dissipation 35 Energy Generation 10 Energy Capacity 125 Matter Stores 300 Matter Capacity 400 Sight Range 16 Robot Scan Range 14 Terrain Scan Density 10 Resistance: KI 20 Resistance: TH 20 Resistance: EX 20 Resistance: EM 20 Resistance: I 20 Resistance: S 20 Resistance: P 20 Evasion (%) 55 Offensive Hacking 10 Item Schematics ----------------- None Robot Schematics ------------------ None Fabricated ------------ Nothing Alien Tech Used ----------------- None Achievements -------------- Crack Shot First Step to Greatness Loot Pinata Challenges ------------ None Game ------ Seed EncryptedReactionLoader Manual? 0 Play Time 00:25:19 Cumulative 0.3 hours Start 2024.07.19 @ 11:31:48 End 2024.07.19 @ 11:58:22 Sessions 1 Manual Loads 0 Difficulty Adventurer Special Mode None Game No. 1 Rogue 0 Adventurer 1 Explorer 0 Win Type - Total 0 Types 0/0/0/0/0/0/0/0/0 Lore% 0 Gallery% 1 Achievement% 1 Wizard Run 0 Options --------- Layout 1 ASCII 0 Keyboard 0 Movement Arrows Keybinds 0 Fullscreen 1 Font 24/Smallcaps Map View 50x35 Zoom Use 0% Tactical HUD 1 Map Filters NONE Filters NONE Steam 1 RUN: f6b83418-5c7c-44dc-85f9-c276a1762289